[Event "FIDE Grand Swiss 2023"]
[Site "Villa Marina, Douglas, Isle of Man"]
[Date "2023.11.01"]
[Round "7.4"]
[White "Erigaisi, Arjun"]
[Black "Esipenko, Andrey"]
[Result "1/2-1/2"]
[WhiteElo "2712"]
[BlackElo "2683"]
[EventDate "2023.10.25"]
[ECO "C88"]
[PlyCount "180"]
[BlackClock "00:03:08"]
[BlackFideId "24175439"]
[TimeControl "40/100 + 20/50 + 15 + 30s/move"]
[WhiteClock "00:03:40"]
[WhiteFideId "35009192"]

1.e4 {[%clk 01:40:53][%emt 00:00:06]} 1...e5 {[%clk 01:40:29][%emt 00:00:32]} 
2.Nf3 {[%clk 01:41:17][%emt 00:00:06]} 2...Nc6 {[%clk 01:40:53][%emt 00:00:06]} 
3.Bb5 {[%clk 01:41:42][%emt 00:00:05]} 3...a6 {[%clk 01:41:17][%emt 00:00:06]} 
4.Ba4 {[%clk 01:42:09][%emt 00:00:04]} 4...Nf6 {[%clk 01:41:42][%emt 00:00:05]} 
5.O-O {[%clk 01:42:32][%emt 00:00:06]} 5...Be7 {[%clk 01:42:03][%emt 00:00:09]} 
6.Re1 {[%clk 01:42:56][%emt 00:00:06]} 6...b5 {[%clk 01:42:29][%emt 00:00:05]} 
7.Bb3 {[%clk 01:43:23][%emt 00:00:03]} 7...O-O {[%clk 01:42:52][%emt 00:00:06]} 
8.h3 {[%clk 01:43:49][%emt 00:00:04]} 8...Bb7 {[%clk 01:40:13][%emt 00:03:10]} 
9.d3 {[%clk 01:42:55][%emt 00:01:24]} 9...d5 {[%clk 01:39:50][%emt 00:00:52]} 
10.exd5 {[%clk 01:43:18][%emt 00:00:07]} 10...Nxd5 {[%clk 01:40:14][%emt
00:00:05]} 11.Nbd2 {[%clk 01:43:42][%emt 00:00:07]} 11...Qd7 {[%clk
01:38:50][%emt 00:01:55]} 12.a4 {[%clk 01:43:07][%emt 00:01:05]} 12...Rae8 
{[%clk 01:38:58][%emt 00:00:22]} 13.axb5 {[%clk 01:40:46][%emt 00:02:51]} 
13...axb5 {[%clk 01:39:22][%emt 00:00:05]} 14.Ne4 {[%clk 01:41:11][%emt
00:00:04]} 14...Kh8 {[%clk 01:39:30][%emt 00:00:23]} 15.Bd2 {[%clk
01:41:10][%emt 00:00:32]} 15...f6 {[%clk 01:23:39][%emt 00:16:20]} 16.c3 {[%clk
01:39:08][%emt 00:02:32]} 16...f5 {[%clk 01:10:43][%emt 00:13:27]} 17.Neg5 
{[%clk 01:37:31][%emt 00:02:06]} 17...Bf6 {[%clk 01:02:30][%emt 00:08:43]} 
18.c4 {[%clk 01:33:51][%emt 00:04:11]} 18...bxc4 {[%clk 00:55:57][%emt
00:07:03]} 19.dxc4 {[%clk 01:34:09][%emt 00:00:11]} 19...Nde7 {[%clk
00:29:19][%emt 00:27:08]} 20.c5 {[%clk 00:49:56][%emt 00:44:44]} 20...e4 {[%clk
00:27:43][%emt 00:02:05]} 21.Be6 {[%clk 00:50:20][%emt 00:00:07]} 21...Qd8 
{[%clk 00:25:55][%emt 00:02:17]} 22.Nf7+ {[%clk 00:50:44][%emt 00:00:06]} 
22...Rxf7 {[%clk 00:26:21][%emt 00:00:04]} 23.Bxf7 {[%clk 00:51:09][%emt
00:00:05]} 23...Rf8 {[%clk 00:23:06][%emt 00:03:44]} 24.Ng5 {[%clk
00:49:22][%emt 00:02:17]} 24...e3 {[%clk 00:22:19][%emt 00:01:18]} 25.Bxe3 
{[%clk 00:44:22][%emt 00:05:30]} 25...Qxd1 {[%clk 00:22:29][%emt 00:00:20]} 
26.Raxd1 {[%clk 00:38:46][%emt 00:06:06]} 26...h6 {[%clk 00:22:51][%emt
00:00:08]} 27.Rd7 {[%clk 00:37:16][%emt 00:02:00]} 27...hxg5 {[%clk
00:19:44][%emt 00:03:37]} 28.Rxc7 {[%clk 00:37:33][%emt 00:00:12]} 28...Ba8 
{[%clk 00:13:55][%emt 00:06:20]} 29.Bc4 {[%clk 00:31:02][%emt 00:07:01]} 
29...Rd8 {[%clk 00:13:14][%emt 00:01:11]} 30.Be6 {[%clk 00:21:03][%emt
00:10:29]} 30...Kh7 {[%clk 00:08:59][%emt 00:04:45]} 31.Rd7 {[%clk
00:20:31][%emt 00:01:02]} 31...Rb8 {[%clk 00:09:10][%emt 00:00:18]} 32.b3 
{[%clk 00:20:06][%emt 00:00:57]} 32...Bb7 {[%clk 00:07:42][%emt 00:01:57]} 
33.Rd6 {[%clk 00:17:10][%emt 00:03:26]} 33...f4 {[%clk 00:03:24][%emt 00:04:48]} 
34.Bd2 {[%clk 00:16:11][%emt 00:01:28]} 34...Be5 {[%clk 00:03:30][%emt
00:00:24]} 35.Rd7 {[%clk 00:15:40][%emt 00:01:02]} 35...Bf6 {[%clk
00:03:54][%emt 00:00:05]} 36.b4 {[%clk 00:08:04][%emt 00:08:07]} 36...Ba6 
{[%clk 00:03:29][%emt 00:00:55]} 37.Rd6 {[%clk 00:08:01][%emt 00:00:33]} 
37...Bb5 {[%clk 00:02:37][%emt 00:01:22]} 38.Bd7 {[%clk 00:07:30][%emt
00:01:01]} 38...Ra8 {[%clk 00:00:39][%emt 00:02:29]} 39.h4 {[%clk 00:04:50][%emt
00:03:09]} 39...gxh4 {[%clk 00:00:34][%emt 00:00:34]} 40.Bxf4 {[%clk
00:04:19][%emt 00:01:01]} 40...Ra2 {[%clk 00:00:36][%emt 00:00:28]} 41.g4 
{[%clk 00:38:16][%emt 00:16:33]} 41...hxg3 {[%clk 00:34:55][%emt 00:16:12]} 
42.Bxg3 {[%clk 00:38:08][%emt 00:00:38]} 42...Rb2 {[%clk 00:26:11][%emt
00:09:13]} 43.Kg2 {[%clk 00:35:07][%emt 00:03:32]} 43...Bc4 {[%clk
00:18:32][%emt 00:08:08]} 44.Kh2 {[%clk 00:25:50][%emt 00:09:47]} 44...Bb5 
{[%clk 00:18:33][%emt 00:00:29]} 45.Re4 {[%clk 00:16:02][%emt 00:10:19]} 
45...Ba4 {[%clk 00:16:26][%emt 00:02:36]} 46.Kg2 {[%clk 00:12:26][%emt
00:04:06]} 46...Kg8 {[%clk 00:11:17][%emt 00:05:40]} 47.Bh4 {[%clk
00:09:23][%emt 00:03:33]} 47...Bc2 {[%clk 00:05:02][%emt 00:06:44]} 48.Rg4 
{[%clk 00:08:18][%emt 00:01:35]} ( 48.Re2 Bxh4 49.Bxc6 Bf6 50.Rxf6 gxf6 51.Rxe7 
Rxb4 52.Bd5+ Kf8 53.Rf7+ Ke8 54.c6 ) 48...Bxh4 {[%clk 00:04:18][%emt 00:01:14]} 
49.Rxh4 {[%clk 00:08:09][%emt 00:00:39]} 49...g5 {[%clk 00:04:20][%emt
00:00:28]} 50.Rg4 {[%clk 00:06:33][%emt 00:02:07]} 50...Rxb4 {[%clk
00:04:28][%emt 00:00:21]} 51.Rxg5+ {[%clk 00:06:59][%emt 00:00:04]} 51...Kf7 
{[%clk 00:04:48][%emt 00:00:10]} 52.f3 {[%clk 00:06:29][%emt 00:01:01]} 
52...Na5 {[%clk 00:01:58][%emt 00:03:20]} 53.c6 {[%clk 00:04:18][%emt 00:02:41]} 
53...Nc4 {[%clk 00:02:19][%emt 00:00:08]} 54.Rh6 {[%clk 00:04:36][%emt
00:00:12]} 54...Bg6 {[%clk 00:02:05][%emt 00:00:45]} 55.Rh8 {[%clk
00:03:37][%emt 00:01:28]} 55...Rb2+ {[%clk 00:02:11][%emt 00:00:24]} 56.Kg3 
{[%clk 00:03:40][%emt 00:00:28]} 56...Nd6 {[%clk 00:01:40][%emt 00:01:01]} 
57.Rc5 {[%clk 00:03:31][%emt 00:00:38]} 57...Be4 {[%clk 00:00:38][%emt
00:01:32]} 58.Rc3 {[%clk 00:02:20][%emt 00:01:41]} 58...Bf5 {[%clk
00:00:45][%emt 00:00:23]} 59.Rd8 {[%clk 00:01:35][%emt 00:01:15]} 59...Bxd7 
{[%clk 00:01:01][%emt 00:00:14]} 60.Rxd7 {[%clk 00:01:27][%emt 00:00:38]} 
60...Nc8 {[%clk 00:01:14][%emt 00:00:17]} 61.c7 {[%clk 00:00:34][%emt 00:01:24]} 
61...Ke6 {[%clk 00:14:44][%emt 00:01:59]} 62.Rd8 {[%clk 00:15:56][%emt
00:00:08]} 62...Rb4 {[%clk 00:14:21][%emt 00:00:53]} 63.f4 {[%clk 00:14:43][%emt
00:01:44]} 63...Rb1 {[%clk 00:14:07][%emt 00:00:42]} 64.Rc5 {[%clk
00:13:30][%emt 00:01:44]} 64...Rg1+ {[%clk 00:13:23][%emt 00:01:14]} 65.Kf2 
{[%clk 00:12:58][%emt 00:01:02]} 65...Ra1 {[%clk 00:12:37][%emt 00:01:16]} 
66.Ke3 {[%clk 00:12:40][%emt 00:00:48]} 66...Ra3+ {[%clk 00:12:32][%emt
00:00:34]} 67.Ke2 {[%clk 00:11:16][%emt 00:01:55]} 67...Kf7 {[%clk
00:12:15][%emt 00:00:47]} 68.Kd2 {[%clk 00:10:58][%emt 00:00:49]} 68...Ra4 
{[%clk 00:10:42][%emt 00:02:02]} 69.Ke3 {[%clk 00:11:14][%emt 00:00:14]} 
69...Rb4 {[%clk 00:10:53][%emt 00:00:18]} 70.Kf3 {[%clk 00:10:25][%emt
00:01:20]} 70...Rb1 {[%clk 00:10:52] [%emt 00:00:31]} 71.Rd4 {[%clk
00:06:55][%emt 00:04:01]} 71...Kf6 {[%clk 00:10:56][%emt 00:00:25]} 72.Rd8 
{[%clk 00:06:51][%emt 00:00:34]} 72...Kf7 {[%clk 00:11:19][%emt 00:00:07]} 
73.Ke4 {[%clk 00:06:50][%emt 00:00:31]} 73...Kf6 {[%clk 00:10:53][%emt
00:00:55]} 74.Rh8 {[%clk 00:06:18][%emt 00:01:03]} 74...Rb4+ {[%clk
00:10:43][%emt 00:00:40]} 75.Ke3 {[%clk 00:06:37][%emt 00:00:11]} 75...Kg7 
{[%clk 00:10:40][%emt 00:00:32]} 76.Rh1 {[%clk 00:06:22][%emt 00:00:46]} 
76...Kf7 {[%clk 00:09:43][%emt 00:01:27]} 77.Kf3 {[%clk 00:06:29][%emt
00:00:23]} 77...Rb7 {[%clk 00:04:15][%emt 00:05:58]} 78.Kg4 {[%clk
00:05:47][%emt 00:01:12]} 78...Kg7 {[%clk 00:04:16][%emt 00:00:29]} 79.Rd1 
{[%clk 00:04:00][%emt 00:02:18]} 79...Kf7 {[%clk 00:04:28][%emt 00:00:17]} 
80.Rc2 {[%clk 00:03:58][%emt 00:00:33]} 80...Ra7 {[%clk 00:04:36][%emt
00:00:22]} 81.Rd7 {[%clk 00:04:05][%emt 00:00:23]} 81...Ra1 {[%clk
00:04:08][%emt 00:00:57]} 82.Rd8 {[%clk 00:03:47][%emt 00:00:49]} 82...Kg7 
{[%clk 00:03:58][%emt 00:00:39]} 83.Rcd2 {[%clk 00:03:46][%emt 00:00:31]} 
83...Rg1+ {[%clk 00:03:00][%emt 00:01:28]} 84.Kf3 {[%clk 00:04:11][%emt
00:00:06]} 84...Rc1 {[%clk 00:03:07][%emt 00:00:22]} 85.R8d7 {[%clk
00:03:31][%emt 00:01:11]} 85...Kf6 {[%clk 00:03:16][%emt 00:00:20]} 86.Re2 
{[%clk 00:03:49][%emt 00:00:13]} 86...Kf7 {[%clk 00:02:23][%emt 00:01:20]} 
87.f5 {[%clk 00:02:58][%emt 00:01:22]} 87...Kf6 {[%clk 00:02:13][%emt 00:00:40]} 
88.Re6+ {[%clk 00:02:57][%emt 00:00:32]} 88...Kxf5 {[%clk 00:02:26][%emt
00:00:17]} 89.Rexe7 {[%clk 00:03:22][%emt 00:00:05]} 89...Nxe7 {[%clk
00:02:50][%emt 00:00:06]} 90.Rxe7 {[%clk 00:03:48][%emt 00:00:04]} 90...Kf6 
{[%clk 00:03:08] [%emt 00:00:12]} 1/2-1/2

[Event "FIDE Grand Swiss 2023"]
[Site "Villa Marina, Douglas, Isle of Man"]
[Date "2023.11.01"]
[Round "7.5"]
[White "Firouzja, Alireza"]
[Black "Sarana, Alexey"]
[Result "1/2-1/2"]
[WhiteElo "2777"]
[BlackElo "2682"]
[EventDate "2023.10.25"]
[ECO "B40"]
[PlyCount "116"]
[BlackClock "00:58:41"]
[BlackFideId "24133795"]
[TimeControl "40/100 + 20/50 + 15 + 30s/move"]
[WhiteClock "00:51:37"]
[WhiteFideId "12573981"]

1.e4 {[%clk 01:40:57][%emt 00:00:03]} 1...c5 {[%clk 01:40:52][%emt 00:00:08]} 
2.Nf3 {[%clk 01:41:21][%emt 00:00:05]} 2...e6 {[%clk 01:41:17][%emt 00:00:06]} 
3.Be2 {[%clk 01:41:34][%emt 00:00:17]} 3...Nc6 {[%clk 01:41:28][%emt 00:00:19]} 
4.O-O {[%clk 01:41:49][%emt 00:00:15]} 4...Nf6 {[%clk 01:39:00][%emt 00:02:58]} 
5.Nc3 {[%clk 01:41:53][%emt 00:00:25]} 5...d6 {[%clk 01:34:48][%emt 00:04:42]} 
6.d4 {[%clk 01:42:11][%emt 00:00:13]} 6...cxd4 {[%clk 01:35:14][%emt 00:00:04]} 
7.Nxd4 {[%clk 01:42:33][%emt 00:00:08]} 7...Be7 {[%clk 01:35:39][%emt 00:00:05]} 
8.Nxc6 {[%clk 01:42:47][%emt 00:00:15]} 8...bxc6 {[%clk 01:36:04][%emt
00:00:06]} 9.Qd3 {[%clk 01:43:12][%emt 00:00:05]} 9...d5 {[%clk 01:29:00][%emt
00:07:34]} 10.Qg3 {[%clk 01:27:43][%emt 00:15:59]} 10...O-O {[%clk
01:21:30][%emt 00:08:00]} 11.Bh6 {[%clk 01:26:48][%emt 00:01:25]} 11...Ne8 
{[%clk 01:21:47][%emt 00:00:13]} 12.Bf4 {[%clk 01:26:19][%emt 00:00:58]} 
12...Bh4 {[%clk 01:10:21][%emt 00:11:56]} 13.Qf3 {[%clk 01:16:19][%emt
00:10:30]} 13...Bg5 {[%clk 01:09:20][%emt 00:01:31]} 14.Bxg5 {[%clk
01:10:15][%emt 00:06:35]} 14...Qxg5 {[%clk 01:08:57][%emt 00:00:53]} 15.Na4 
{[%clk 00:59:24][%emt 00:11:21]} 15...Nf6 {[%clk 01:03:37][%emt 00:05:51]} 
16.Bd3 {[%clk 00:59:33][%emt 00:00:20]} 16...e5 {[%clk 01:00:42][%emt 00:03:25]} 
17.Rfe1 {[%clk 00:55:15][%emt 00:04:47]} 17...Re8 {[%clk 00:51:45][%emt
00:09:28]} 18.Qg3 {[%clk 00:46:32][%emt 00:09:12]} 18...h6 {[%clk 00:44:59][%emt
00:07:17]} 19.c3 {[%clk 00:35:29][%emt 00:11:33]} 19...a5 {[%clk 00:39:43][%emt
00:05:46]} 20.Rad1 {[%clk 00:28:44][%emt 00:07:15]} 20...Rb8 {[%clk
00:37:58][%emt 00:02:16]} 21.b3 {[%clk 00:28:01][%emt 00:01:12]} 21...Nh5 
{[%clk 00:31:18][%emt 00:07:10]} 22.Qxg5 {[%clk 00:27:14][%emt 00:01:17]} 
22...hxg5 {[%clk 00:31:46][%emt 00:00:02]} 23.Bc2 {[%clk 00:25:49][%emt
00:01:55]} 23...Nf6 {[%clk 00:31:16][%emt 00:01:00]} 24.h3 {[%clk 00:25:08][%emt
00:01:11]} 24...Kf8 {[%clk 00:28:18][%emt 00:03:29]} 25.Re3 {[%clk
00:21:39][%emt 00:03:58]} 25...g6 {[%clk 00:21:39][%emt 00:07:09]} 26.Rde1 
{[%clk 00:19:42][%emt 00:02:27]} 26...Nd7 {[%clk 00:21:52][%emt 00:00:17]} 
27.Rg3 {[%clk 00:19:13][%emt 00:00:59]} 27...Ba6 {[%clk 00:20:45][%emt
00:01:37]} 28.Rxg5 {[%clk 00:16:29][%emt 00:03:15]} 28...Bb5 {[%clk
00:21:11][%emt 00:00:03]} 29.Nb2 {[%clk 00:16:14][%emt 00:00:45]} 29...a4 
{[%clk 00:20:46][%emt 00:00:55]} 30.h4 {[%clk 00:14:07][%emt 00:02:37]} 
30...axb3 {[%clk 00:19:00][%emt 00:02:16]} 31.Bxb3 {[%clk 00:14:01][%emt
00:00:36]} 31...Nc5 {[%clk 00:16:26][%emt 00:03:05]} 32.exd5 {[%clk
00:13:52][%emt 00:00:38]} 32...Nxb3 {[%clk 00:16:50][%emt 00:00:07]} 33.axb3 
{[%clk 00:13:35][%emt 00:00:47]} 33...cxd5 {[%clk 00:17:17][%emt 00:00:02]} 
34.h5 {[%clk 00:11:28][%emt 00:02:36]} 34...gxh5 {[%clk 00:14:09][%emt
00:03:39]} 35.Rxh5 {[%clk 00:09:51][%emt 00:02:07]} 35...f6 {[%clk
00:11:29][%emt 00:03:10]} 36.c4 {[%clk 00:04:14][%emt 00:06:07]} 36...Bc6 
{[%clk 00:06:39][%emt 00:05:20]} 37.Rh8+ {[%clk 00:03:26][%emt 00:01:18]} 
37...Kf7 {[%clk 00:07:02][%emt 00:00:06]} 38.Rxe8 {[%clk 00:03:33][%emt
00:00:24]} 38...Kxe8 {[%clk 00:06:23][%emt 00:01:08]} 39.cxd5 {[%clk
00:03:25][%emt 00:00:39]} 39...Bxd5 {[%clk 00:06:52][%emt 00:00:02]} 40.Nc4 
{[%clk 00:03:46][%emt 00:00:09]} 40...Ke7 {[%clk 00:05:42][%emt 00:01:38]} 
41.Re3 {[%clk 00:47:42][%emt 00:06:34]} 41...Bxc4 {[%clk 00:54:34][%emt
00:01:40]} 42.bxc4 {[%clk 00:47:55][%emt 00:00:16]} 42...Rb1+ {[%clk
00:55:02][%emt 00:00:03]} 43.Kh2 {[%clk 00:48:18][%emt 00:00:05]} 43...Rc1 
{[%clk 00:55:29][%emt 00:00:04]} 44.Re4 {[%clk 00:48:41][%emt 00:00:07]} 
44...Ke6 {[%clk 00:55:53][%emt 00:00:06]} 45.g3 {[%clk 00:47:58][%emt 00:01:12]} 
45...Rc2 {[%clk 00:55:37][%emt 00:00:47]} 46.Kg1 {[%clk 00:48:14][%emt
00:00:14]} 46...f5 {[%clk 00:54:47][%emt 00:01:21]} 47.Rh4 {[%clk 00:48:38][%emt
00:00:05]} 47...e4 {[%clk 00:54:20][%emt 00:00:58]} 48.Rh6+ {[%clk
00:48:56][%emt 00:00:11]} 48...Ke5 {[%clk 00:54:47][%emt 00:00:03]} 49.Rc6 
{[%clk 00:49:14][%emt 00:00:12]} 49...f4 {[%clk 00:54:44][%emt 00:00:33]} 
50.gxf4+ {[%clk 00:48:48][%emt 00:00:56]} 50...Kxf4 {[%clk 00:55:12][%emt
00:00:02]} 51.c5 {[%clk 00:48:53][%emt 00:00:25]} 51...e3 {[%clk 00:55:36][%emt
00:00:06]} 52.fxe3+ {[%clk 00:49:18][%emt 00:00:05]} 52...Kxe3 {[%clk
00:56:04][%emt 00:00:03]} 53.Rc8 {[%clk 00:49:39][%emt 00:00:08]} 53...Kd4 
{[%clk 00:56:31][%emt 00:00:02]} 54.c6 {[%clk 00:50:03][%emt 00:00:07]} 
54...Kd5 {[%clk 00:56:57][%emt 00:00:04]} 55.Rd8+ {[%clk 00:50:29][%emt
00:00:04]} 55...Ke6 {[%clk 00:57:18] [%emt 00:00:09]} 56.Rh8 {[%clk 00:50:52]
[%emt 00:00:07]} 56...Rxc6 {[%clk 00:57:45] [%emt 00:00:03]} 57.Rh6+ {[%clk
00:51:15] [%emt 00:00:06]} 57...Kd7 {[%clk 00:58:14] [%emt 00:00:02]} 58.Rxc6 
{[%clk 00:51:38] [%emt 00:00:07]} 58...Kxc6 {[%clk 00:58:41] [%emt 00:00:01]} 1/2-1/2

[Event "FIDE Grand Swiss 2023"]
[Site "Villa Marina, Douglas, Isle of Man"]
[Date "2023.11.01"]
[Round "7.7"]
[White "Keymer, Vincent"]
[Black "Korobov, Anton"]
[Result "1-0"]
[WhiteElo "2717"]
[BlackElo "2658"]
[EventDate "2023.10.25"]
[ECO "D17"]
[PlyCount "125"]
[BlackClock "00:19:49"]
[BlackFideId "14105730"]
[TimeControl "40/100 + 20/50 + 15 + 30s/move"]
[WhiteClock "00:09:35"]
[WhiteFideId "12940690"]

1.d4 {[%clk 01:40:57][%emt 00:00:02]} 1...d5 {[%clk 01:40:51][%emt 00:00:09]} 
2.c4 {[%clk 01:41:23][%emt 00:00:05]} 2...c6 {[%clk 01:41:17][%emt 00:00:03]} 
3.Nf3 {[%clk 01:41:50][%emt 00:00:03]} 3...Nf6 {[%clk 01:41:42][%emt 00:00:05]} 
4.Nc3 {[%clk 01:42:17][%emt 00:00:03]} 4...dxc4 {[%clk 01:41:56][%emt 00:00:15]} 
5.a4 {[%clk 01:42:43][%emt 00:00:05]} 5...Bf5 {[%clk 01:42:11][%emt 00:00:14]} 
6.Ne5 {[%clk 01:43:08][%emt 00:00:06]} 6...Nbd7 {[%clk 01:42:25][%emt 00:00:16]} 
7.Nxc4 {[%clk 01:43:32][%emt 00:00:06]} 7...Nb6 {[%clk 01:42:44][%emt 00:00:10]} 
8.Ne5 {[%clk 01:43:40][%emt 00:00:23]} 8...a5 {[%clk 01:42:57][%emt 00:00:17]} 
9.h4 {[%clk 01:43:48][%emt 00:00:22]} 9...h6 {[%clk 01:41:53][%emt 00:01:33]} 
10.f3 {[%clk 01:44:07][%emt 00:00:12]} 10...e6 {[%clk 01:41:56][%emt 00:00:26]} 
11.e4 {[%clk 01:43:10][%emt 00:01:27]} 11...Bh7 {[%clk 01:42:11][%emt 00:00:14]} 
12.Be3 {[%clk 01:41:58][%emt 00:01:43]} 12...Nfd7 {[%clk 01:32:07][%emt
00:10:35]} 13.Nd3 {[%clk 01:40:27][%emt 00:02:01]} 13...Nc4 {[%clk
01:27:22][%emt 00:05:15]} 14.Bf2 {[%clk 01:35:58][%emt 00:04:58]} 14...Nd6 
{[%clk 01:26:51][%emt 00:01:00]} 15.Be2 {[%clk 01:26:04][%emt 00:10:25]} 
15...Be7 {[%clk 01:22:40][%emt 00:04:41]} 16.g4 {[%clk 01:24:24][%emt 00:02:11]} 
16...Rb8 {[%clk 01:20:04][%emt 00:03:05]} 17.Rc1 {[%clk 01:18:17][%emt
00:06:38]} 17...O-O {[%clk 01:13:18][%emt 00:07:16]} 18.Kf1 {[%clk
01:09:05][%emt 00:09:42]} 18...b5 {[%clk 01:09:24][%emt 00:04:24]} 19.Kg2 
{[%clk 00:59:32][%emt 00:10:03]} 19...bxa4 {[%clk 01:04:56][%emt 00:04:57]} 
20.Nxa4 {[%clk 00:57:05][%emt 00:02:57]} 20...Qc7 {[%clk 00:48:53] [%emt
00:16:33]} 21.Bg3 {[%clk 00:48:01][%emt 00:09:34]} 21...Qa7 {[%clk
00:42:39][%emt 00:06:43]} 22.Bf2 {[%clk 00:37:18][%emt 00:11:13]} 22...Qc7 
{[%clk 00:48:53][%emt 00:16:33]} 23.Rh3 {[%clk 00:34:00][%emt 00:03:48]} 
23...Rfd8 {[%clk 00:33:29][%emt 00:06:24]} 24.Qc2 {[%clk 00:34:01][%emt
00:00:29]} 24...Rdc8 {[%clk 00:29:33][%emt 00:04:26]} 25.g5 {[%clk
00:32:00][%emt 00:02:32]} 25...hxg5 {[%clk 00:26:19][%emt 00:03:43]} 26.hxg5 
{[%clk 00:32:26][%emt 00:00:04]} 26...Bxg5 {[%clk 00:26:45][%emt 00:00:04]} 
27.Rch1 {[%clk 00:32:52][%emt 00:00:04]} 27...Nf8 {[%clk 00:27:09][%emt
00:00:06]} 28.Nac5 {[%clk 00:31:18][%emt 00:02:05]} 28...Qe7 {[%clk
00:24:53][%emt 00:02:46]} 29.Qd1 {[%clk 00:26:38][%emt 00:05:10]} 29...f5 
{[%clk 00:22:54][%emt 00:02:29]} 30.e5 {[%clk 00:25:15][%emt 00:01:54]} 
30...Nf7 {[%clk 00:23:04][%emt 00:00:18]} 31.f4 {[%clk 00:24:27][%emt 00:01:18]} 
31...Bh6 {[%clk 00:20:26][%emt 00:03:09]} 32.Qg1 {[%clk 00:24:47][%emt
00:00:10]} 32...a4 {[%clk 00:09:57][%emt 00:10:59]} 33.Bh4 {[%clk 00:23:03][%emt
00:02:13]} 33...Qa7 {[%clk 00:09:17][%emt 00:01:09]} 34.Kf2 {[%clk
00:22:37][%emt 00:00:57]} 34...Kh8 {[%clk 00:05:16][%emt 00:04:31]} 35.Bh5 
{[%clk 00:16:45][%emt 00:06:22]} 35...Bxf4 {[%clk 00:01:40][%emt 00:04:06]} 
36.Bxf7 {[%clk 00:13:51][%emt 00:03:24]} 36...Qxf7 {[%clk 00:01:58][%emt
00:00:11]} 37.Nxf4 {[%clk 00:13:36][%emt 00:00:45]} 37...Rxb2+ {[%clk
00:02:26][%emt 00:00:01]} 38.Kf3 {[%clk 00:12:39][%emt 00:01:28]} 38...Rcb8 
{[%clk 00:01:57][%emt 00:00:59]} 39.Be7 {[%clk 00:07:41][%emt 00:05:28]} 
39...R8b3+ {[%clk 00:02:23][%emt 00:00:03]} 40.Nxb3 {[%clk 00:05:19][%emt
00:02:53]} 40...Rxb3+ {[%clk 00:02:52][%emt 00:00:01]} 41.Ke2 {[%clk
00:01:57][%emt 00:03:52]} 41...Rb2+ {[%clk 00:01:58][%emt 00:01:24]} 42.Kd3 
{[%clk 00:49:07][%emt 00:03:20]} 42...Kg8 {[%clk 00:47:58][%emt 00:04:29]} 
43.Qg5 {[%clk 00:43:31][%emt 00:06:06]} 43...c5 {[%clk 00:39:50][%emt 00:08:38]} 
44.Kc3 {[%clk 00:34:26][%emt 00:09:35]} 44...Rb7 {[%clk 00:33:41][%emt
00:06:39]} 45.Bxf8 {[%clk 00:27:15][%emt 00:07:41]} 45...cxd4+ {[%clk
00:33:21][%emt 00:00:49]} 46.Kd2 {[%clk 00:26:36][%emt 00:01:10]} 46...Qxf8 
{[%clk 00:33:40][%emt 00:00:10]} 47.Nd3 {[%clk 00:26:51][%emt 00:00:16]} 
47...g6 {[%clk 00:30:07][%emt 00:04:02]} 48.Rxh7 {[%clk 00:25:02][%emt
00:02:19]} 48...Rxh7 {[%clk 00:30:36][%emt 00:00:02]} 49.Qxg6+ {[%clk
00:25:26][%emt 00:00:05]} 49...Rg7 {[%clk 00:31:01][%emt 00:00:04]} 50.Qxe6+ 
{[%clk 00:25:53][%emt 00:00:04]} 50...Rf7 {[%clk 00:31:27][%emt 00:00:04]} 
51.Qd5 {[%clk 00:22:33][%emt 00:03:51]} 51...Qg7 {[%clk 00:28:25][%emt
00:03:31]} 52.Rh2 {[%clk 00:21:27][%emt 00:01:37]} 52...Qg5+ {[%clk
00:27:57][%emt 00:00:57]} 53.Kc2 {[%clk 00:21:51][%emt 00:00:07]} 53...Qe7 
{[%clk 00:26:58][%emt 00:01:28]} 54.Rg2+ {[%clk 00:21:40][%emt 00:00:41]} 
54...Kh7 {[%clk 00:26:45][%emt 00:00:42]} 55.Rg3 {[%clk 00:21:35][%emt
00:00:37]} 55...Qb7 {[%clk 00:24:26][%emt 00:02:49]} 56.Qxd4 {[%clk
00:13:28][%emt 00:08:37]} 56...Qc6+ {[%clk 00:22:00][%emt 00:02:55]} 57.Kd2 
{[%clk 00:09:08][%emt 00:04:50]} 57...Qh6+ {[%clk 00:20:47][%emt 00:01:42]} 
58.Nf4 {[%clk 00:09:16][%emt 00:00:22]} 58...Qh2+ {[%clk 00:20:17][%emt
00:01:00]} 59.Rg2 {[%clk 00:09:43][%emt 00:00:04]} 59...Qh4 {[%clk
00:20:02][%emt 00:00:44]} 60.e6 {[%clk 00:09:41][%emt 00:00:32]} 60...Rb7 
{[%clk 00:19:57][%emt 00:00:35]} 61.Qe5 {[%clk 00:08:57][%emt 00:01:15]} 
61...Qd8+ {[%clk 00:19:41][%emt 00:00:46]} 62.Ke2 {[%clk 00:09:10][%emt
00:00:17]} 62...Qf8 {[%clk 00:19:55][%emt 00:00:15]} 63.Rh2+ {[%clk
00:09:35][%emt 00:00:05]} 1-0